bitfinex-derivatives/quotes_ETHF0:USTF0_20250104
["timestamp","ask_amount","ask_price","bid_price","bid_amount"]
[1735971102823,0.2777,3602.3,3601.8,3.48553]
[1735971103027,0.2777,3602.3,3602.1,1.108]
[1735971103028,0.434,3602.2,3602.1,1.108]
[1735971103225,0.434,3602.2,3602.0,1.108]
[1735971104529,0.434,3602.2,3602.0,1.102]
[1735971105529,0.434,3602.2,3601.9,0.27773]
[1735971105730,0.434,3602.2,3602.0,1.102]
[1735971106336,0.434,3602.2,3601.8,3.48554]
[1735971106538,0.71171,3602.2,3601.8,4.3098]
[1735971106730,0.434,3602.2,3601.8,4.3098]
[1735971107036,0.27772,3602.0,3601.8,4.3098]
[1735971107640,0.434,3602.2,3601.8,4.3098]
[1735971107833,0.27771,3602.1,3601.8,4.3098]
[1735971108139,0.27771,3602.1,3601.8,3.2078]
[1735971108636,0.71171,3602.2,3601.8,3.2078]
[1735971110433,0.434,3602.2,3601.8,3.2078]
[1735971110633,0.71171,3602.2,3601.8,3.2078]
[1735971114736,0.434,3602.2,3601.8,3.2078]
[1735971114935,0.71171,3602.2,3601.8,3.2078]
[1735971115330,0.27772,3602.1,3601.8,3.2078]
[1735971115528,0.71171,3602.2,3601.8,3.2078]
[1735971116732,0.434,3602.2,3601.8,3.2078]
[1735971116938,0.71171,3602.2,3601.8,3.2078]
[1735971117828,0.27772,3602.1,3601.8,3.2078]
[1735971120237,0.27772,3602.1,3601.7,4.58754]
[1735971120540,0.27772,3602.1,3601.7,4.3098]
[1735971121338,0.434,3602.2,3601.7,4.3098]
[1735971121539,0.27772,3602.1,3601.7,4.3098]
[1735971121841,0.27772,3602.1,3601.7,4.58754]
[1735971122438,0.27772,3602.1,3601.7,4.3098]
[1735971122739,0.27772,3602.1,3601.7,4.58754]
[1735971125342,0.71171,3602.2,3601.7,4.58754]
[1735971125542,0.27772,3602.1,3601.7,4.3098]
[1735971125943,0.434,3602.2,3601.7,4.3098]
[1735971126146,0.434,3602.2,3601.7,3.2078]
[1735971126446,0.27773,3601.9,3601.7,3.2078]
[1735971126840,0.434,3602.2,3601.7,3.2078]
[1735971127138,0.27772,3602.0,3601.7,3.2078]
[1735971127344,0.27771,3602.1,3601.7,3.2078]
[1735971127546,0.434,3602.2,3601.8,0.27774]
[1735971127943,0.71171,3602.2,3601.8,0.27774]
[1735971128243,0.27773,3602.0,3601.7,3.2078]
[1735971128443,0.434,3602.2,3601.7,3.2078]
[1735971128742,0.27774,3601.8,3601.7,3.2078]
[1735971132137,0.434,3602.2,3601.7,3.2078]
[1735971132646,0.27774,3601.8,3601.7,3.2078]
[1735971133144,0.434,3602.2,3601.7,3.2078]
[1735971133351,0.27773,3601.9,3601.7,3.2078]
[1735971133747,0.27774,3601.8,3601.7,3.2078]
[1735971134645,0.27774,3601.8,3601.6,3.2078]
[1735971134847,1.2614,3601.7,3601.6,3.2078]
[1735971135955,1.53914,3601.7,3601.6,3.2078]
[1735971136250,1.2614,3601.7,3601.6,3.2078]
[1735971139348,0.8301,3601.7,3601.6,3.2078]
[1735971139550,0.00153657,3601.8,3601.6,4.21043057]
[1735971139748,0.00153657,3601.8,3601.7,0.27774]
[1735971141657,0.00153657,3601.8,3601.7,4.61458487]
[1735971143962,0.00153657,3601.8,3601.7,5.4315452]
[1735971146154,0.00153657,3601.8,3601.7,14.14942549]
[1735971146952,0.00153657,3601.8,3601.7,24.47771895]
[1735971148251,0.00153657,3601.8,3601.7,15.75983866]
[1735971149452,0.00153657,3601.8,3601.7,26.63320219]
[1735971150156,0.00153657,3601.8,3601.7,29.84100219]
[1735971150748,0.00153657,3601.8,3601.7,31.05613623]
[1735971150950,0.00153657,3601.8,3601.7,36.05613623]
[1735971152155,3.02237401,3602.7,3602.3,0.2777]
[1735971152358,3.30004401,3602.7,3602.5,1.00263057]
[1735971152560,1.12077,3602.7,3602.5,1.00263057]
[1735971153453,1.12077,3602.7,3602.6,5.1538052]
[1735971154656,1.12077,3602.7,3602.6,11.67459937]
[1735971156559,2.17927401,3603.0,3602.7,0.27767]
[1735971156760,2.17927401,3603.0,3602.9,1.00263057]
[1735971156959,2.17927401,3603.0,3602.9,4.48808057]
[1735971158362,0.4161,3603.4,3602.9,29.77571808]
[1735971158558,0.69372,3603.4,3602.9,29.77571808]
[1735971159456,0.69372,3603.4,3603.2,4.33879603]
[1735971159658,0.69372,3603.4,3603.3,1.091]
[1735971160665,2.54453204,3603.4,3603.1,3.65849603]
[1735971160858,0.27763,3603.2,3603.1,2.97819603]
[1735971161765,0.27763,3603.2,3603.1,2.29789603]
[1735971161969,0.27767,3602.7,3602.6,1.091]
[1735971164266,0.4378,3603.2,3602.6,1.091]
[1735971164562,0.27766,3602.8,3602.6,1.091]
[1735971164861,0.27767,3602.7,3602.6,1.091]
[1735971165069,0.71547,3602.7,3602.6,1.091]
[1735971165264,0.4378,3602.7,3602.5,3.2078]
[1735971165570,0.71008,3602.6,3602.5,3.2078]
[1735971177979,0.4324,3602.6,3602.2,4.2958]
[1735971178180,0.70168,3602.5,3602.2,4.2958]
[1735971179988,0.424,3602.5,3602.2,4.2958]
[1735971180591,0.424,3602.5,3602.2,10.80399405]
[1735971181080,0.70168,3602.5,3602.2,10.80399405]
[1735971181277,0.70169,3602.5,3602.2,10.80399405]
[1735971181688,0.424,3602.5,3602.2,9.71599405]
[1735971181884,0.2777,3602.3,3602.2,9.71599405]
[1735971182188,0.2777,3602.3,3602.2,3.2078]
[1735971185186,0.27769,3602.4,3602.2,3.2078]
[1735971185791,0.2777,3602.3,3602.2,3.2078]
[1735971186087,0.27769,3602.4,3602.2,3.2078]
[1735971186282,0.427,3602.5,3602.2,3.2078]
[1735971186497,0.71547,3602.7,3602.2,3.4855]
[1735971186885,0.4378,3602.7,3602.3,0.27769]
[1735971187289,0.71547,3602.7,3602.4,0.4417]
[1735971187586,0.4378,3602.7,3602.6,3.2078]
[1735971187786,0.71547,3602.7,3602.6,3.2078]
[1735971187986,0.4378,3602.7,3602.6,3.2078]
[1735971188687,2.17927401,3602.8,3602.6,3.48548]
[1735971188893,1.17296,3602.9,3602.6,3.48548]
[1735971189396,0.27766,3602.7,3602.6,3.2078]
[1735971191786,0.8953,3602.9,3602.6,3.2078]
[1735971191987,0.27766,3602.8,3602.6,3.48547]
[1735971192693,1.17295,3602.9,3602.7,0.27766]
[1735971192991,1.17295,3602.9,3602.6,3.2078]
[1735971192992,0.8953,3602.9,3602.6,3.2078]
[1735971193195,0.27765,3602.8,3602.6,3.48547]
[1735971195986,0.27765,3602.8,3602.6,3.2078]
[1735971196193,0.27765,3602.8,3602.6,4.20979821]
[1735971196491,0.27765,3602.8,3602.6,4.48746821]
[1735971196693,0.27766,3602.8,3602.6,4.48746821]
[1735971197792,0.27766,3602.8,3602.6,4.20979821]
[1735971198389,0.27766,3602.8,3602.7,5.04093345]
[1735971199593,1.17295,3602.9,3602.7,5.31859345]
[1735971199791,0.27766,3602.8,3602.6,10.99566226]
[1735971200991,0.27765,3602.8,3602.7,6.50819405]
[1735971201902,0.27765,3602.8,3602.7,5.0409113]
[1735971202698,0.27765,3602.8,3602.7,8.2487113]
[1735971205296,2.17927401,3603.0,3602.7,8.2487113]
[1735971205491,2.17927401,3603.0,3602.9,1.27964821]
[1735971205798,2.17927401,3603.0,3602.9,1.00199821]
[1735971206697,0.27763,3603.1,3602.9,14.73953665]
[1735971207099,0.27764,3603.0,3602.9,14.73953665]
[1735971208104,0.27764,3603.0,3602.9,6.04290951]
[1735971208508,2.17927401,3603.2,3602.9,6.04290951]
[1735971208699,0.27763,3603.1,3602.9,6.04290951]
[1735971209006,0.27764,3603.1,3602.9,6.04290951]
[1735971209203,2.17927401,3603.2,3602.9,6.04290951]
[1735971209404,0.27764,3603.1,3602.9,6.04290951]
[1735971210499,0.27764,3603.1,3603.0,11.56175417]
[1735971211007,2.45690401,3603.2,3603.0,11.56175417]
[1735971211205,0.27763,3603.1,3603.0,11.56175417]
[1735971211808,0.27763,3603.1,3602.9,9.69862535]
[1735971212205,0.27763,3603.1,3603.0,3.2078]
[1735971213308,0.27763,3603.1,3603.0,14.76731138]
[1735971213999,0.27763,3603.1,3603.0,11.55951138]
[1735971214200,0.27763,3603.1,3603.0,14.76731138]
[1735971214597,2.17927401,3603.3,3603.0,14.76731138]
[1735971214807,2.17927401,3603.3,3603.1,2.08799821]
[1735971215004,2.45689401,3603.3,3603.1,2.08799821]
[1735971215616,0.27762,3603.2,3603.1,2.08799821]
[1735971215809,0.27762,3603.2,3603.1,8.60679713]
[1735971216804,0.27762,3603.3,3603.1,13.64577412]
[1735971217911,0.27762,3603.2,3603.1,13.64577412]
[1735971218109,0.27762,3603.2,3603.1,8.60679713]
[1735971218408,0.27762,3603.3,3603.1,8.60679713]
[1735971219106,0.4413,3603.4,3603.1,8.60679713]
[1735971219306,0.27762,3603.3,3603.1,8.60679713]
[1735971220403,0.4413,3603.4,3603.1,8.60679713]
[1735971220702,0.27762,3603.3,3603.1,2.08799821]
[1735971220898,0.27762,3603.3,3603.1,2.51869821]
[1735971221512,2.17927401,3603.5,3603.4,0.27761]
[1735971221804,0.39897401,3603.6,3603.5,0.2776]
[1735971222006,0.39897401,3603.6,3603.5,1.71769821]
[1735971222612,2.56945404,3603.7,3603.6,0.27759]
[1735971222907,4.13846404,3604.7,3604.1,0.27755]
[1735971223102,4.13846404,3604.7,3604.6,1.00199821]
[1735971223305,4.13846404,3604.7,3604.4,1.00199821]
[1735971224015,4.13846404,3604.7,3604.2,1.36354]
[1735971224016,1.56901,3604.7,3604.6,1.00199821]
[1735971224409,1.2915,3604.7,3604.4,1.00199821]
[1735971224608,0.27752,3604.5,3604.2,8.58961894]
[1735971224912,0.27752,3604.5,3604.2,7.58762073]
[1735971225109,0.27752,3604.5,3604.2,8.58961894]
[1735971225716,0.27753,3604.5,3604.3,1.086]
[1735971225904,0.27752,3604.6,3604.3,1.086]
[1735971226108,1.56901,3604.7,3604.4,1.00199821]
[1735971226309,1.56901,3604.7,3604.3,1.086]
[1735971227117,1.56901,3604.7,3604.4,3.2078]
[1735971227611,1.2915,3604.7,3604.4,3.2078]
[1735971227809,0.27752,3604.6,3604.4,3.2078]
[1735971228010,1.56901,3604.7,3604.4,3.2078]
[1735971229919,1.2915,3604.7,3604.4,3.2078]
[1735971230220,0.27752,3604.6,3604.4,3.2078]
[1735971231419,1.56901,3604.7,3604.4,3.2078]
[1735971232017,0.27752,3604.6,3604.4,3.2078]
[1735971232220,1.2915,3604.7,3604.4,3.2078]
[1735971232524,1.56901,3604.7,3604.4,3.2078]
[1735971233021,1.2915,3604.7,3604.4,3.2078]
[1735971233423,1.56901,3604.7,3604.4,3.2078]
[1735971233919,0.27752,3604.5,3604.4,3.2078]
[1735971234126,1.2915,3604.7,3604.0,1.086]
[1735971234426,0.27752,3604.6,3604.0,4.2938]
[1735971234626,0.27755,3604.1,3604.0,1.086]
[1735971234828,0.27755,3604.2,3604.0,1.086]
[1735971235019,1.2656,3604.1,3604.0,1.086]
[1735971236726,0.27753,3604.5,3604.1,0.27755]
[1735971237119,1.3101,3604.7,3604.1,0.27755]
[1735971237324,0.27752,3604.6,3604.1,0.27755]
[1735971237624,0.27753,3604.5,3604.0,4.57136]
[1735971237824,1.58761,3604.7,3604.2,0.27755]
[1735971238123,1.58761,3604.7,3604.2,2.12725495]
[1735971238124,1.3101,3604.7,3604.2,2.12725495]
[1735971238320,1.58761,3604.7,3604.2,2.40479495]
[1735971238524,1.3101,3604.7,3604.2,2.40479495]
[1735971238725,0.27752,3604.6,3604.2,2.12725495]
[1735971239028,0.27753,3604.5,3604.1,0.27755]
[1735971239233,1.3101,3604.7,3604.1,0.27755]
[1735971239626,0.27753,3604.5,3604.1,0.27755]
[1735971239932,0.27753,3604.5,3604.2,1.086]
[1735971241432,1.3101,3604.7,3604.2,1.086]
[1735971241625,0.27753,3604.5,3604.2,1.086]
[1735971242136,0.27752,3604.6,3604.2,1.086]
[1735971243036,1.3101,3604.7,3604.2,1.086]
[1735971243436,0.27752,3604.5,3604.2,1.086]
[1735971243638,0.27753,3604.4,3603.7,7.58762073]
[1735971243837,0.27756,3604.1,3603.7,7.58762073]
[1735971244138,0.8699,3604.0,3603.7,7.58762073]
[1735971244340,1.3212,3604.0,3603.7,7.58762073]
[1735971244639,1.3212,3604.0,3603.7,1.086]
[1735971245238,1.3212,3604.0,3603.7,1.36358]
[1735971245633,1.3212,3604.0,3603.9,3.2078]
[1735971246233,0.4483,3604.0,3603.9,5.33505495]
[1735971246635,0.72586,3604.0,3603.9,5.33505495]
[1735971246937,0.72586,3604.0,3603.9,3.2078]
[1735971247135,0.4483,3604.0,3603.5,3.2078]
[1735971247335,0.2776,3603.5,3603.4,6.50162073]
[1735971248832,0.2776,3603.5,3603.3,1.086]
[1735971249031,0.4212,3603.4,3603.3,1.086]
[1735971249637,0.8414,3603.4,3603.3,1.086]
[1735971250442,1.11901,3603.4,3603.3,1.086]
[1735971251438,0.8414,3603.4,3603.3,1.086]
[1735971251944,1.11901,3603.4,3603.3,1.086]
[1735971253438,0.8414,3603.4,3603.3,1.086]
[1735971254140,0.8414,3603.4,3603.1,5.33505495]
[1735971254336,0.27762,3603.3,3603.2,1.086]
[1735971254539,1.2725,3603.4,3603.2,1.086]
[1735971254940,1.55011,3603.4,3603.2,1.086]
[1735971255143,1.2725,3603.4,3603.2,1.086]
[1735971255645,1.2725,3603.4,3603.2,4.2938]
[1735971260144,0.27762,3603.3,3603.2,4.2938]
[1735971261642,0.27762,3603.3,3603.2,3.2078]
[1735971263048,0.27763,3603.1,3603.0,1.088]
[1735971263247,1.2725,3603.4,3602.9,6.50162073]
[1735971263553,0.27764,3603.0,3602.9,7.58962073]
[1735971263848,0.27764,3603.0,3602.9,1.088]
[1735971264050,0.27764,3603.1,3602.9,1.088]
[1735971264849,1.2725,3603.4,3602.7,9.70942073]
[1735971265051,0.27766,3602.8,3602.7,9.70942073]
[1735971265353,0.27766,3602.8,3602.7,3.2078]
[1735971266447,0.27766,3602.7,3602.6,6.50162073]
[1735971266850,3.2078,3603.2,3602.3,1.088]
[1735971266851,0.27768,3602.6,3602.3,1.088]
[1735971267047,0.4209,3602.5,3602.3,1.088]
[1735971267546,0.4209,3602.5,3602.3,3.21525495]
[1735971267752,0.4209,3602.5,3602.4,0.27769]
[1735971267952,0.8457,3603.1,3602.3,3.21525495]
[1735971268152,0.27766,3602.8,3602.3,3.49294495]
[1735971268756,0.4123,3602.9,3602.3,3.21525495]
[1735971268952,0.68995,3602.9,3602.4,0.27768]
[1735971269267,0.4123,3602.9,3602.5,0.27767]
[1735971270954,0.4123,3602.9,3602.5,1.088]
[1735971271158,0.68995,3602.9,3602.5,1.088]
[1735971271355,0.68995,3602.9,3602.5,1.36568]
[1735971271655,0.68995,3602.9,3602.5,1.088]
[1735971271954,0.68995,3602.9,3602.6,1.088]
[1735971272353,0.4123,3602.9,3602.6,1.088]
[1735971272854,0.27766,3602.8,3602.6,1.088]
[1735971273855,0.4123,3602.9,3602.7,0.27766]
[1735971275150,0.68995,3602.9,3602.6,4.57347]
[1735971275552,0.4123,3602.9,3602.6,4.57347]
[1735971275856,0.68995,3602.9,3602.6,1.36567]
[1735971277558,0.4123,3602.9,3602.7,0.27766]
[1735971278657,0.4123,3602.9,3602.6,4.57347]
[1735971281358,0.68995,3602.9,3602.6,4.57347]
[1735971282459,0.68995,3602.9,3602.6,3.48547]
[1735971282659,0.68995,3602.9,3602.6,4.57347]
[1735971283058,0.4123,3602.9,3602.6,4.2958]
[1735971283256,0.4123,3602.9,3602.7,0.27766]
[1735971284161,0.8457,3603.1,3602.6,4.2958]
[1735971284362,0.8457,3603.1,3602.9,0.27764]
[1735971285061,0.8457,3603.1,3603.0,3.2078]
[1735971286358,0.8457,3603.1,3602.9,0.27765]
[1735971287561,1.12334,3603.1,3602.8,4.61098008]
[1735971289661,1.12334,3603.1,3602.9,0.27765]
[1735971290863,1.12334,3603.1,3602.8,4.61098008]
[1735971291064,0.4497,3603.4,3602.9,4.33333008]
[1735971291265,0.876,3603.5,3603.3,0.27762]
[1735971291464,0.876,3603.5,3603.4,1.36461]
[1735971292163,0.4335,3603.5,3603.4,1.36461]
[1735971292367,0.4335,3603.5,3603.4,5.69794008]
[1735971293966,0.4335,3603.5,3603.4,6.47933824]
[1735971296271,0.4335,3603.5,3603.4,6.20172824]
[1735971298270,0.7111,3603.5,3603.4,6.20172824]
[1735971298769,0.7111,3603.5,3603.4,5.42790404]
[1735971299369,0.4335,3603.5,3603.4,5.42790404]
[1735971300471,0.7111,3603.5,3603.4,5.42790404]
[1735971301563,0.7111,3603.5,3603.4,5.11410833]
[1735971301773,0.7111,3603.5,3603.4,6.20110833]
[1735971302462,0.7111,3603.5,3603.4,1.087]
[1735971303675,0.7111,3603.5,3603.4,5.42725228]
[1735971305472,0.4335,3603.5,3603.4,5.42725228]
[1735971307574,0.7111,3603.5,3603.4,5.42725228]
[1735971307778,0.7111,3603.5,3603.4,6.20110388]
[1735971310680,0.7111,3603.5,3603.4,5.42716152]
[1735971316283,0.4335,3603.5,3603.4,6.70637089]
[1735971317185,0.4335,3603.5,3603.4,7.4809976]
[1735971319580,0.4335,3603.5,3603.4,7.2033876]
[1735971320079,0.7111,3603.5,3603.4,7.2033876]
[1735971320487,0.7111,3603.5,3603.4,13.70500833]
[1735971320683,0.7111,3603.5,3603.4,12.70340896]
[1735971323990,0.4335,3603.5,3603.4,12.70340896]
[1735971324189,0.7111,3603.5,3603.4,12.70340896]
[1735971327903,0.7111,3603.5,3603.4,6.20178823]
[1735971329506,0.4335,3603.5,3603.4,6.20178823]
[1735971329899,0.7111,3603.5,3603.4,6.20178823]
[1735971334601,0.7111,3603.5,3603.4,14.87061587]
[1735971335705,0.4335,3603.5,3603.4,15.14822587]
[1735971336102,0.4335,3603.5,3603.4,14.87061587]
[1735971337105,0.4335,3603.5,3603.4,16.44812415]
[1735971339008,0.7111,3603.5,3603.4,16.44812415]
[1735971342017,0.4335,3603.5,3603.4,16.44812415]
[1735971342303,0.7111,3603.5,3603.4,15.36112415]
[1735971342508,0.7111,3603.5,3603.4,16.44112415]
[1735971342906,2.89699822,3603.5,3603.4,16.44112415]
[1735971344411,2.61939822,3603.5,3603.4,16.44112415]
[1735971345207,2.61939822,3603.5,3603.4,15.36112415]
[1735971345406,0.4335,3603.5,3603.4,16.44112415]
[1735971348711,2.46349822,3603.6,3603.4,16.44112415]
[1735971348712,2.18589822,3603.6,3603.4,16.44112415]
[1735971349011,2.18589822,3603.6,3603.5,1.27919937]
[1735971349717,2.18589822,3603.6,3603.5,2.49388055]
[1735971350320,2.18589822,3603.6,3603.5,1.27919937]
[1735971350713,0.4146,3604.1,3603.9,0.27757]
[1735971351018,0.4146,3604.1,3604.0,1.00159937]
[1735971351927,0.4146,3604.1,3604.0,14.80321669]
[1735971353929,0.4146,3604.1,3604.0,15.08077669]
[1735971354420,0.4146,3604.1,3604.0,6.3939476]
[1735971356021,0.4146,3604.1,3604.0,6.1163876]
[1735971356222,0.4146,3604.1,3604.0,6.3939476]
[1735971357022,0.4146,3604.1,3604.0,12.90394277]
[1735971358320,0.4146,3604.1,3604.0,6.3939476]
[1735971361427,0.451,3604.2,3604.0,6.1163876]
[1735971361625,0.4297,3604.3,3604.2,0.27755]
[1735971361831,0.4297,3604.3,3604.2,1.27914937]
[1735971362230,0.4302,3604.5,3604.4,0.27753]
[1735971362431,0.8599,3604.5,3604.3,3.48534]
[1735971363134,0.8599,3604.5,3604.4,1.27912937]
[1735971363338,2.87419822,3604.9,3604.4,6.5390876]
[1735971363631,0.4272,3604.7,3604.4,5.81501823]
[1735971364331,0.4272,3604.7,3604.5,0.27752]
[1735971364729,0.4272,3604.7,3604.6,1.00159937]
[1735971364928,0.70471,3604.7,3604.6,7.50874486]
[1735971366429,0.70471,3604.7,3604.6,1.00159937]
[1735971371838,0.4272,3604.7,3604.6,1.00159937]
[1735971373031,0.4272,3604.7,3604.3,4.33478085]
[1735971373232,0.4272,3604.7,3604.6,1.27911937]
[1735971375434,0.4272,3604.7,3604.6,1.00159937]
[1735971380144,0.4272,3604.7,3604.6,1.27911937]
[1735971382849,0.27748,3605.2,3604.8,0.2775]
[1735971383047,0.69148,3605.2,3605.1,1.00159937]
[1735971384944,0.414,3605.2,3605.1,2.07559937]
[1735971385251,0.414,3605.2,3605.1,2.35307937]
[1735971386247,0.414,3605.2,3605.1,5.56087937]
[1735971387042,0.414,3605.2,3605.1,5.97067937]
[1735971387252,0.414,3605.2,3605.1,11.05575999]
[1735971387742,2.18589822,3606.1,3605.1,11.05575999]
[1735971387743,2.18589822,3606.1,3605.1,10.77827999]
[1735971387948,0.41,3605.8,3605.1,9.77668062]
[1735971388152,2.46330822,3606.1,3605.6,0.27743]
[1735971388344,2.46330822,3606.1,3606.0,0.27741]
[1735971388345,2.18589822,3606.1,3606.0,0.27741]
[1735971388545,2.18589822,3606.1,3606.0,1.35141]
[1735971388852,2.18589822,3606.3,3606.0,1.35141]
[1735971389057,2.18589822,3606.3,3606.0,1.074]
[1735971389256,2.18589822,3606.3,3606.2,1.27898937]
[1735971390554,0.8559,3606.6,3606.5,0.27737]
[1735971390751,0.8559,3606.6,3606.5,1.00159937]
[1735971391147,2.18589822,3607.0,3606.8,0.27734]
[1735971391350,2.18589822,3607.0,3606.9,1.073]
[1735971391652,2.18589822,3607.0,3606.9,2.07459937]
[1735971391848,0.8825,3607.3,3606.9,2.07459937]
[1735971392151,0.8825,3607.3,3607.1,1.27891937]
[1735971392346,0.8825,3607.3,3607.1,0.27733]
[1735971392555,0.8825,3607.3,3607.0,2.12382111]
[1735971392945,0.8825,3607.3,3606.9,1.35034]
[1735971392946,0.27733,3607.1,3606.9,1.073]
[1735971393253,0.27736,3606.7,3606.6,1.073]
[1735971393758,0.27736,3606.6,3606.5,6.50714549]
[1735971394050,1.09966,3606.6,3606.5,6.50714549]
[1735971395554,0.27738,3606.4,3606.3,1.073]
[1735971396658,0.27737,3606.5,3606.3,3.19682111]
[1735971397358,1.2729,3607.0,3606.3,3.19682111]
[1735971397560,0.27737,3606.6,3606.3,3.19682111]
[1735971397756,0.27737,3606.5,3606.3,3.19682111]
[1735971398561,1.2729,3607.0,3606.3,3.19682111]
[1735971398961,0.27738,3606.5,3606.3,3.19682111]
[1735971399162,0.4163,3606.4,3606.3,3.19682111]
[1735971401663,0.69368,3606.4,3606.3,3.19682111]
[1735971403067,0.4163,3606.4,3605.9,2.37583855]
[1735971403267,0.2774,3606.2,3606.0,1.073]
[1735971403565,0.2774,3606.1,3606.0,1.073]
[1735971403765,0.879,3606.3,3605.9,2.12382111]
[1735971404061,0.27741,3606.0,3605.9,2.12382111]
[1735971404262,0.27741,3606.0,3605.9,3.19682111]
[1735971404968,0.27741,3606.0,3605.9,1.073]
[1735971405169,0.27741,3606.0,3605.9,3.19682111]
[1735971409470,0.27741,3606.0,3605.9,3.20682111]
[1735971412071,0.879,3606.3,3605.9,3.20682111]
[1735971413261,0.27741,3606.1,3605.9,3.20682111]
[1735971415974,0.2774,3606.2,3605.9,3.20682111]
[1735971416188,0.2774,3606.2,3606.0,0.4467]
[1735971416879,0.2774,3606.2,3605.9,3.20682111]
[1735971417879,0.27741,3606.1,3605.9,3.20682111]
[1735971418275,0.27741,3606.1,3606.0,1.00012179]
[1735971420380,0.2774,3606.2,3605.9,3.20813645]
[1735971421275,0.879,3606.3,3605.9,2.40254645]
[1735971421581,0.2774,3606.2,3606.0,1.083]
[1735971426785,0.879,3606.3,3606.0,1.083]
[1735971427087,0.879,3606.3,3606.1,0.2774]
[1735971427579,0.879,3606.3,3606.0,1.083]
[1735971427580,2.18589822,3606.9,3606.6,0.27736]
[1735971427784,0.4412,3606.8,3606.7,0.4417]
[1735971429078,0.4412,3606.8,3606.7,1.36036]
[1735971429278,2.63499822,3607.0,3606.9,0.27734]
[1735971429474,0.4491,3607.0,3606.9,2.40247645]
[1735971430187,0.4491,3607.0,3606.9,2.40085]
[1735971430682,2.18589822,3607.2,3606.9,2.12513645]
[1735971430984,0.27733,3607.1,3606.7,1.36036]
[1735971431182,2.18589822,3607.2,3606.7,1.083]
[1735971431380,0.27734,3607.0,3606.8,4.31379824]
[1735971431575,0.27732,3607.2,3606.8,4.59114824]
[1735971431776,0.8791,3607.3,3606.8,4.31379824]
[1735971431777,0.27734,3606.9,3606.8,4.31379824]
[1735971431981,0.27734,3607.0,3606.8,4.31379824]
[1735971432185,0.71933,3607.1,3606.8,4.31379824]
[1735971433083,0.442,3607.1,3606.8,4.31379824]
[1735971433888,0.442,3607.1,3606.8,4.59113824]
[1735971434092,0.442,3607.1,3606.8,4.31379824]
[1735971434289,0.442,3607.1,3606.9,0.27734]
[1735971435186,0.442,3607.1,3607.0,0.27733]
[1735971435888,0.442,3607.1,3607.0,2.40246645]
[1735971437389,0.4412,3607.3,3607.1,0.27732]
[1735971437689,2.18589822,3607.6,3607.4,0.2773]
[1735971437891,2.18589822,3607.6,3607.5,1.082]
[1735971438286,2.18589822,3607.6,3607.5,1.3593]
[1735971438890,0.8515,3607.7,3607.5,1.7999]
[1735971439283,2.18589822,3608.0,3607.6,0.27729]
[1735971439484,3.03769822,3608.0,3607.7,2.12513645]
[1735971439683,3.31495822,3608.0,3607.7,2.12513645]
[1735971439878,0.27727,3607.9,3607.7,2.12513645]
[1735971440782,0.8518,3608.0,3607.7,2.12513645]
[1735971440983,0.27728,3607.9,3607.7,2.40243645]
[1735971441182,0.27728,3607.9,3607.7,2.12513645]
[1735971441685,0.27729,3607.8,3607.5,1.35931]
[1735971442086,0.2773,3607.7,3607.5,1.082]
[1735971442287,3.2078,3607.9,3607.6,1.084]
[1735971442478,0.2773,3607.7,3607.6,1.084]
[1735971443891,3.2078,3607.9,3607.2,4.31379824]
[1735971444095,3.2078,3607.9,3607.3,1.084]
[1735971444390,0.27732,3607.4,3607.3,1.084]
[1735971444785,3.2078,3607.9,3607.2,4.31379824]
[1735971444985,0.27735,3607.1,3607.0,4.31379824]
[1735971445992,0.27735,3607.1,3607.0,5.39779824]
[1735971446488,0.27735,3607.1,3607.0,1.084]
[1735971446988,0.27735,3607.1,3606.7,2.12513645]
[1735971447194,0.27738,3606.6,3606.5,4.31379824]
[1735971447890,0.27738,3606.5,3606.4,6.43893469]
[1735971448090,1.15948,3606.5,3606.4,6.43893469]
[1735971448685,1.15948,3606.5,3606.4,7.52293469]
[1735971448898,1.15948,3606.5,3606.4,3.20913645]
[1735971450592,1.15948,3606.5,3606.4,2.12513645]
[1735971451891,0.8821,3606.5,3606.2,1.084]
[1735971452192,0.2774,3606.4,3606.2,1.084]
[1735971452892,1.15949,3606.5,3606.2,1.084]
[1735971453292,1.15949,3606.5,3606.3,1.084]
[1735971453789,0.8821,3606.5,3606.3,1.084]
[1735971454094,1.15949,3606.5,3606.3,1.084]
[1735971456891,3.2078,3606.7,3606.3,1.084]
[1735971457198,2.18589822,3607.1,3606.3,1.084]
[1735971457199,0.27739,3606.5,3606.3,1.084]
[1735971459001,0.4358,3606.4,3606.3,1.084]
[1735971459391,0.4358,3606.4,3606.1,5.61035645]
[1735971459691,0.4358,3606.4,3606.2,1.084]
[1735971460098,0.7132,3606.4,3606.2,1.084]
[1735971460306,0.4358,3606.4,3606.2,1.084]
[1735971460495,0.4358,3606.4,3606.1,5.61035645]
[1735971460790,0.4358,3606.4,3606.3,1.084]
[1735971461401,0.27739,3606.6,3606.3,1.084]
[1735971461598,1.12069,3606.5,3606.3,1.084]
[1735971462301,0.8433,3606.5,3606.3,1.084]
[1735971463895,0.2774,3606.4,3606.3,1.084]
[1735971464495,1.1207,3606.5,3606.3,1.084]
[1735971464797,0.2774,3606.4,3606.3,1.084]
[1735971464995,0.8433,3606.5,3606.3,1.084]
[1735971465601,1.1207,3606.5,3606.3,1.084]
[1735971466007,0.2774,3606.4,3606.3,1.084]
[1735971468704,0.8433,3606.5,3606.1,2.12513645]
[1735971468906,3.2078,3606.2,3605.9,4.31379824]
[1735971469102,0.27743,3606.0,3605.9,4.31379824]
[1735971469607,0.71733,3606.0,3605.9,4.31379824]
[1735971470697,0.27744,3605.9,3605.6,4.21736187]